fUST/lending_fUST_20251105
["ID","MTS","AMOUNT","RATE_DAILY","PERIOD"]
[393160579,1762289250755,151.0,0.00019265,7]
[393160580,1762289251061,151.0,0.00020681,7]
[393160581,1762289251400,151.0,0.00021506,7]
[393160582,1762289252314,151.0,0.00019265,7]
[393160583,1762289252605,151.0,0.00020681,7]
[393160584,1762289252895,151.0,0.00021506,7]
[393160585,1762289253925,151.0,0.00019265,7]
[393160586,1762289254192,151.0,0.00020681,7]
[393160587,1762289254486,151.0,0.00021506,7]
[393160588,1762289281387,862.12,0.00022,14]
[393160591,1762289309673,151.0,0.00019265,7]
[393160592,1762289310081,151.0,0.00020681,7]
[393160593,1762289310320,151.0,0.000215,7]
[393160594,1762289310602,151.0,0.00022613,7]
[393160595,1762289311561,151.0,0.00019265,7]
[393160596,1762289311866,151.0,0.00020681,7]
[393160597,1762289312173,151.0,0.000215,7]
[393160598,1762289312461,151.0,0.00022613,7]
[393160599,1762289313026,151.0,0.00019265,7]
[393160600,1762289313314,151.0,0.00020681,7]
[393160601,1762289313603,151.0,0.000215,7]
[393160602,1762289313991,261.711776,0.00022613,7]
[393160603,1762289321037,156.699156,0.00019265,7]
[393160605,1762289403533,2000.0,0.00020192,7]
[393160606,1762289415344,492.33,0.00019255,3]
[393160607,1762289417505,689.69,0.00022,14]
[393160608,1762289426276,246.17,0.00019255,3]
[393160682,1762289432217,-1055.893652,0.00019255,2]
[393160701,1762289432404,151.0,0.00019265,7]
[393160710,1762289432704,151.0,0.00020362,7]
[393160764,1762289437263,738.51,0.00019255,3]
[393160775,1762289438018,-4681.59177026,0.00019255,2]
[393160777,1762289438128,-1697.93144906,0.00019255,2]
[393160778,1762289438142,-189.46969454,0.00019256,2]
[393160779,1762289438152,-300.0,0.00019259,2]
[393160782,1762289438242,-1200.0,0.00019259,2]
[393160783,1762289438256,-500.0,0.00019259,2]
[393160784,1762289438266,-420.31374861,0.00019259,2]
[393160785,1762289438276,-500.0,0.00019259,2]
[393160786,1762289438285,-528.40944725,0.00019259,2]
[393160787,1762289438294,-14684.00384772,0.0001926,2]
[393160788,1762289438543,163.0,0.00029068,120]
[393160818,1762289440342,163.0,0.00030521,120]
[393160847,1762289440620,-3e-08,0.00019259,2]
[393160850,1762289440632,-321.95608146,0.00019259,2]
[393161074,1762289442906,-178.04391851,0.00019259,2]
[393161077,1762289442916,-500.0,0.00019259,2]
[393161080,1762289442925,-150.54808349,0.00019259,2]
[393161113,1762289443146,163.0,0.00032048,120]
[393161120,1762289443352,-349.45191651,0.00019259,2]
[393161121,1762289443362,-82.66363007,0.00019259,2]
[393161137,1762289479443,-417.33636993,0.00019259,2]
[393161138,1762289479454,-500.0,0.00019259,2]
[393161139,1762289479463,-500.0,0.00019259,2]
[393161140,1762289479473,-500.0,0.00019259,2]
[393161141,1762289479483,-35315.99615228,0.0001926,2]
[393161142,1762289479492,-380.0,0.00019261,2]
[393161143,1762289479502,-500.0,0.00019261,2]
[393161144,1762289479511,-585.05118505,0.00019261,2]
[393161145,1762289479521,-500.0,0.00019264,2]
[393161146,1762289479530,-532.62737455,0.00019264,2]
[393161147,1762289479539,-678031.26328899,0.00019265,2]
[393161148,1762289479549,-500.0,0.00019355,2]
[393161149,1762289479558,-500.0,0.00019538,2]
[393161150,1762289479567,-262.98,0.00019569,2]
[393161151,1762289479576,-300.0,0.00019741,2]
[393161152,1762289479585,-300.0,0.00019741,2]
[393161153,1762289479595,-300.0,0.00019741,2]
[393161154,1762289479604,-300.0,0.00019741,2]
[393161155,1762289479613,-300.0,0.00019741,2]
[393161156,1762289479622,-300.0,0.00019741,2]
[393161157,1762289479631,-300.0,0.00019741,2]
[393161158,1762289479640,-300.0,0.00019741,2]
[393161159,1762289479650,-300.0,0.00019741,2]
[393161160,1762289479659,-300.0,0.00019741,2]
[393161161,1762289479672,-300.0,0.00019741,2]
[393161162,1762289479681,-300.0,0.00019741,2]
[393161163,1762289479691,-300.0,0.00019741,2]
[393161164,1762289479700,-300.0,0.00019741,2]
[393161165,1762289479710,-300.0,0.00019741,2]
[393161166,1762289479719,-600.0,0.00019741,2]
[393161167,1762289479729,-500.0,0.00019812,2]
[393161168,1762289479738,-570.9748661,0.0001999,2]
[393161169,1762289479747,-1925.22363793,0.00020048,2]
[393161170,1762289479757,-500.0,0.00020086,2]
[393161171,1762289479769,-300.50473546,0.00020138,2]
[393161172,1762289479778,-210.85098733,0.00020139,2]
[393161173,1762289479788,-240.97255695,0.00020184,2]
[393161174,1762289479797,-376.51962023,0.00020311,2]
[393161175,1762289479808,-500.0,0.0002036,2]
[393161176,1762289479818,-192.0206709,0.00020362,2]
[393161177,1762289479827,-7940.9227143,0.00020362,2]
[393161178,1762289479837,-2515.6621876,0.00020362,2]
[393161179,1762289479855,-22769.4597933,0.00020362,2]
[393161180,1762289479865,-525.97,0.00020508,2]
[393161181,1762289479876,-1925.22363793,0.00020543,2]
[393161182,1762289479885,-984.66,0.00020625,3]
[393161183,1762289479894,-492.34,0.00020625,3]
[393161184,1762289479903,-500.0,0.00020626,2]
[393161185,1762289479913,-500.0,0.00020626,2]
[393161186,1762289479923,-500.0,0.00020626,2]
[393161187,1762289479933,-500.0,0.00020626,2]
[393161188,1762289479942,-500.0,0.00020626,2]
[393161189,1762289479952,-500.0,0.00020626,2]
[393161190,1762289479961,-151.0,0.00020626,2]
[393161191,1762289479970,-500.0,0.00020626,2]
[393161192,1762289479979,-151.0,0.00020626,2]
[393161193,1762289479989,-274.39780273,0.00020626,2]
[393161194,1762289479998,-500.0,0.00020626,2]
[393161195,1762289480008,-152.47865491,0.00020626,2]
[393161196,1762289480018,-500.0,0.00020626,2]
[393161197,1762289480028,-500.0,0.00020626,2]
[393161198,1762289480035,-500.0,0.00020626,2]
[393161199,1762289480041,-500.0,0.00020626,2]
[393161200,1762289480049,-500.0,0.00020634,2]
[393161201,1762289480058,-500.0,0.00020681,2]
[393161202,1762289480067,-500.0,0.00020681,2]
[393161203,1762289480076,-500.0,0.00020681,2]
[393161204,1762289480086,-500.0,0.00020681,2]
[393161205,1762289480096,-500.0,0.00020681,2]
[393161206,1762289480105,-500.0,0.00020681,2]
[393161207,1762289480115,-203.1070673,0.00020681,2]
[393161208,1762289480124,-500.0,0.00020681,2]
[393161209,1762289480134,-155.56426143,0.00020681,2]
[393161210,1762289480141,-500.0,0.00020681,2]
[393161211,1762289480149,-500.0,0.00020681,2]
[393161212,1762289480156,-500.0,0.00020681,2]
[393161213,1762289480163,-500.0,0.00020681,2]
[393161214,1762289480173,-500.0,0.00020681,2]
[393161215,1762289480179,-500.0,0.00020736,2]
[393161216,1762289480188,-500.0,0.00020736,2]
[393161217,1762289480198,-500.0,0.00020736,2]
[393161218,1762289480207,-500.0,0.00020736,2]
[393161219,1762289480218,-500.0,0.00020736,2]
[393161220,1762289480225,-500.0,0.00020736,2]
[393161221,1762289480231,-157.8475286,0.00020736,2]
[393161222,1762289480239,-500.0,0.00020736,2]
[393161223,1762289480247,-500.0,0.00020736,2]
[393161224,1762289480255,-500.0,0.00020736,2]
[393161225,1762289480262,-500.0,0.00020736,2]
[393161226,1762289480271,-500.0,0.00020736,2]
[393161227,1762289480278,-423.45,0.00020768,2]
[393161228,1762289480287,-500.0,0.0002079,2]
[393161229,1762289480294,-649.4638114,0.0002079,2]
[393161230,1762289480303,-500.0,0.0002079,2]
[393161231,1762289480313,-500.0,0.0002079,2]
[393161232,1762289480323,-500.0,0.0002079,2]
[393161233,1762289480334,-500.0,0.0002079,2]
[393161234,1762289480343,-500.0,0.0002079,2]
[393161235,1762289480353,-619.67702078,0.0002079,2]
[393161236,1762289480362,-500.0,0.0002079,2]
[393161237,1762289480372,-500.0,0.0002079,2]
[393161238,1762289480383,-468.00969769,0.0002079,2]
[393161239,1762289480393,-500.0,0.00020845,2]
[393161240,1762289480402,-500.0,0.00020845,2]
[393161241,1762289480412,-500.0,0.00020845,2]
[393161242,1762289480423,-500.0,0.00020845,2]
[393161243,1762289480434,-500.0,0.00020845,2]
[393161244,1762289480444,-500.0,0.00020845,2]
[393161245,1762289480453,-316.67180494,0.00020845,2]
[393161246,1762289480463,-500.0,0.00020845,2]
[393161247,1762289480472,-500.0,0.000209,2]
[393161248,1762289480481,-500.0,0.000209,2]
[393161249,1762289480491,-500.0,0.000209,2]
[393161250,1762289480501,-352.58269311,0.000209,2]
[393161251,1762289480511,-500.0,0.000209,2]
[393161252,1762289480520,-500.0,0.000209,2]
[393161253,1762289480530,-500.0,0.000209,2]
[393161254,1762289480538,-500.0,0.00020908,2]
[393161255,1762289480548,-158.92350379,0.00020955,2]
[393161256,1762289480557,-175.67697675,0.00020955,2]
[393161257,1762289480567,-500.0,0.00020955,2]
[393161258,1762289480577,-500.0,0.00020955,2]
[393161259,1762289480586,-500.0,0.00020955,2]
[393161260,1762289480596,-613.27460115,0.00020955,2]
[393161261,1762289480605,-420.0,0.00020987,2]
[393161262,1762289480615,-274.89305808,0.00021,2]
[393161263,1762289480624,-751.0,0.00021,2]
[393161264,1762289480634,-500.0,0.0002101,2]
[393161265,1762289480644,-500.0,0.0002101,2]
[393161266,1762289480653,-500.0,0.0002101,2]
[393161267,1762289480662,-1751.45838198,0.00021046,2]
[393161268,1762289480674,-986.57576033,0.00021047,2]
[393161269,1762289480682,-500.0,0.00021058,2]
[393161270,1762289480692,-151.0,0.00021064,2]
[393161271,1762289480701,-500.0,0.00021064,2]
[393161272,1762289480711,-835.0,0.00021088,2]
[393161273,1762289480720,-500.0,0.00021119,2]
[393161274,1762289480729,-500.0,0.00021174,2]
[393161275,1762289480739,-500.0,0.00021182,2]
[393161276,1762289480748,-500.0,0.00021222,2]
[393161277,1762289480758,-500.0,0.00021222,2]
[393161278,1762289480770,-500.0,0.00021222,2]
[393161279,1762289480784,-502.14300269,0.00021222,2]
[393161280,1762289480801,-503.13085624,0.00021222,2]
[393161281,1762289480812,-300.0,0.00021222,2]
[393161282,1762289480822,-500.0,0.00021222,2]
[393161283,1762289480832,-500.0,0.00021229,2]
[393161284,1762289480845,-223.57423956,0.00021256,2]
[393161285,1762289480854,-500.0,0.00021284,2]
[393161286,1762289480865,-151.0,0.000213,3]
[393161287,1762289480875,-500.0,0.00021338,2]
[393161288,1762289480997,-210.8307853,0.00021385,2]
[393161289,1762289481008,-582.86121857,0.00021393,2]
[393161290,1762289481019,-788.95,0.0002144,2]
[393161291,1762289481028,-520.5912282,0.00021456,2]
[393161292,1762289481038,-300.0,0.000215,2]
[393161293,1762289481048,-300.0,0.000215,2]
[393161294,1762289481059,-300.0,0.000215,2]
[393161295,1762289481070,-300.0,0.000215,2]
[393161296,1762289481080,-6330.801631,0.00021506,2]
[393161297,1762289481090,-500.0,0.00021573,2]
[393161298,1762289481099,-500.0,0.00021573,2]
[393161299,1762289481110,-151.0,0.00021573,3]
[393161300,1762289481120,-151.0,0.00021573,3]
[393161301,1762289481131,-151.0,0.00021573,3]
[393161302,1762289481142,-151.0,0.00021573,3]
[393161303,1762289481152,-151.0,0.00021573,3]
[393161304,1762289481162,-151.0,0.00021573,3]
[393161305,1762289481176,-151.0,0.00021573,3]
[393161306,1762289481186,-151.0,0.00021573,3]
[393161307,1762289481195,-151.0,0.00021573,3]
[393161308,1762289481205,-151.0,0.00021573,3]
[393161309,1762289481216,-151.0,0.00021573,3]
[393161310,1762289481226,-151.0,0.00021573,3]
[393161311,1762289481235,-151.0,0.00021573,3]
[393161312,1762289481245,-151.0,0.00021573,3]
[393161313,1762289481255,-151.0,0.00021573,3]
[393161314,1762289481265,-151.0,0.00021573,3]
[393161315,1762289481274,-151.0,0.00021573,3]
[393161316,1762289481284,-258.640148,0.00021573,3]
[393161317,1762289481293,-151.0,0.000217,3]
[393161318,1762289481303,-1000.0,0.0002177,2]
[393161319,1762289481312,-1000.0,0.0002177,2]
[393161320,1762289481321,-1000.0,0.0002177,2]
[393161321,1762289481331,-1751.45838198,0.0002183,2]
[393161322,1762289481340,-160.0,0.0002184,2]
[393161323,1762289481349,-1157.30205462,0.00021867,2]
[393161324,1762289481358,-500.0,0.00021917,2]
[393161325,1762289481369,-500.0,0.00021917,2]
[393161326,1762289481378,-500.0,0.00021917,2]
[393161327,1762289481389,-500.0,0.00021917,2]
[393161328,1762289481398,-500.0,0.00021917,2]
[393161329,1762289481408,-500.0,0.00021917,2]
[393161330,1762289481418,-500.0,0.00021917,2]
[393161331,1762289481434,-500.0,0.00021917,2]
[393161332,1762289481445,-500.0,0.00021917,2]
[393161333,1762289481455,-500.0,0.00021917,2]
[393161334,1762289481467,-500.0,0.00021917,2]
[393161335,1762289481477,-500.0,0.00021917,2]
[393161336,1762289481488,-500.0,0.00021917,2]
[393161337,1762289481500,-500.0,0.00021917,2]
[393161338,1762289481510,-500.0,0.00021917,2]
[393161339,1762289481520,-500.0,0.00021917,2]
[393161340,1762289481530,-500.0,0.00021917,2]
[393161341,1762289481541,-500.0,0.00021917,2]
[393161342,1762289481550,-500.0,0.00021917,2]
[393161343,1762289481560,-500.0,0.00021917,2]
[393161344,1762289481569,-500.0,0.00021917,2]
[393161345,1762289481579,-500.0,0.00021917,2]
[393161346,1762289481588,-248.81,0.00021917,2]
[393161347,1762289481597,-358.84573269,0.00022,2]
[393161348,1762289481607,-558.85161902,0.00022,2]
[393161349,1762289481616,-774.69742896,0.00022024,2]
[393161350,1762289481626,-986.57576033,0.00022256,2]
[393161351,1762289481635,-1500.0,0.00022318,2]
[393161352,1762289481642,-391.15992761,0.00022318,2]
[393161353,1762289481651,-1500.0,0.00022318,2]
[393161354,1762289481661,-1051.93,0.00022372,2]
[393161355,1762289481673,-260.0,0.00022388,2]
[393161356,1762289481682,-7940.9227143,0.00022495,2]
[393161357,1762289481692,-22769.4597933,0.00022495,2]
[393161358,1762289481702,-1751.45838198,0.00022613,3]
[393161359,1762289481711,-2515.6621876,0.00022694,2]
[393161360,1762289481721,-513.25927861,0.00022866,2]
[393161361,1762289481730,-516.76732216,0.00022866,2]
[393161362,1762289481740,-587.0,0.0002287,2]
[393161363,1762289481750,-360.0,0.00022936,2]
[393161364,1762289481759,-151.0,0.00023,8]
[393161365,1762289481770,-180.80481846,0.00023188,2]
[393161366,1762289481781,-151.0,0.00023244,7]
[393161367,1762289481790,-151.0,0.00023244,7]
[393161368,1762289481800,-151.0,0.00023244,7]
[393161369,1762289481811,-257.67878458,0.00023256,2]
[393161370,1762289481821,-500.0,0.00023273,2]
[393161371,1762289481831,-500.0,0.00023273,2]
[393161372,1762289481841,-500.0,0.00023273,2]
[393161373,1762289481853,-500.0,0.00023273,2]
[393161374,1762289481864,-500.0,0.00023273,2]
[393161375,1762289481874,-500.0,0.00023273,2]
[393161376,1762289481885,-500.0,0.00023273,2]
[393161377,1762289481896,-465.13697078,0.00023273,2]
[393161378,1762289481907,-355.0556696,0.00023288,30]
[393161379,1762289481922,-151.0,0.00023288,7]
[393161380,1762289481934,-151.0,0.00023288,7]
[393161381,1762289481945,-151.0,0.00023288,7]
[393161382,1762289481957,-296.224446,0.00023288,7]
[393161383,1762289481968,-151.0,0.00023288,7]
[393161384,1762289481980,-151.0,0.00023288,7]
[393161385,1762289481991,-177.918087,0.00023288,7]
[393161386,1762289482002,-151.0,0.00023288,7]
[393161387,1762289482013,-151.0,0.00023288,7]
[393161388,1762289482023,-151.0,0.00023288,7]
[393161389,1762289482035,-172.258239,0.00023288,7]
[393161390,1762289482046,-151.0,0.00023288,7]
[393161391,1762289482057,-151.0,0.00023288,7]
[393161392,1762289482068,-151.0,0.00023288,7]
[393161393,1762289482079,-151.0,0.00023288,7]
[393161394,1762289482089,-151.0,0.00023288,7]
[393161395,1762289482100,-151.0,0.00023288,7]
[393161396,1762289482111,-151.0,0.00023288,7]
[393161397,1762289482120,-215.466683,0.00023288,7]
[393161398,1762289482131,-151.0,0.00023288,7]
[393161399,1762289482140,-151.0,0.00023288,7]
[393161400,1762289482149,-151.0,0.00023288,7]
[393161401,1762289482159,-282.002252,0.00023288,7]
[393161402,1762289482169,-151.0,0.00023288,7]
[393161403,1762289482180,-151.0,0.00023288,7]
[393161404,1762289482189,-151.0,0.00023288,7]
[393161405,1762289482198,-296.061121,0.00023288,7]
[393161406,1762289482208,-151.0,0.00023288,7]
[393161407,1762289482217,-151.0,0.00023288,7]
[393161408,1762289482226,-151.0,0.00023288,7]
[393161409,1762289482236,-151.0,0.00023288,7]
[393161410,1762289482246,-151.0,0.00023288,7]
[393161411,1762289482255,-151.0,0.00023288,7]
[393161412,1762289482264,-151.0,0.00023288,7]
[393161413,1762289482274,-153.446922,0.00023288,7]
[393161414,1762289482283,-151.0,0.00023288,7]
[393161415,1762289482293,-151.0,0.00023288,7]
[393161416,1762289482302,-151.0,0.00023288,7]
[393161417,1762289482313,-151.0,0.00023288,7]
[393161418,1762289482322,-151.0,0.00023288,7]
[393161419,1762289482331,-151.0,0.00023288,7]
[393161420,1762289482340,-151.0,0.00023288,7]
[393161421,1762289482350,-151.0,0.00023288,7]
[393161422,1762289482358,-151.0,0.00023288,7]
[393161423,1762289482367,-151.0,0.00023288,7]
[393161424,1762289482377,-151.0,0.00023288,7]
[393161425,1762289482388,-151.0,0.00023288,7]
[393161426,1762289482397,-151.0,0.00023288,7]
[393161427,1762289482406,-251.55406777,0.00023288,7]
[393161428,1762289482416,-151.0,0.00023288,7]
[393161429,1762289482430,-151.0,0.00023288,7]
[393161430,1762289482439,-151.0,0.00023288,7]
[393161431,1762289482449,-151.0,0.00023288,7]
[393161432,1762289482458,-151.0,0.00023288,7]
[393161433,1762289482467,-174.982269,0.00023288,7]
[393161434,1762289482477,-151.0,0.00023288,7]
[393161435,1762289482487,-155.249813,0.00023288,7]
[393161436,1762289482496,-151.0,0.00023288,7]
[393161437,1762289482505,-151.0,0.00023288,7]
[393161438,1762289482515,-151.0,0.00023288,7]
[393161439,1762289482524,-151.0,0.00023288,7]
[393161440,1762289482534,-151.0,0.00023288,7]
[393161441,1762289482543,-151.0,0.00023288,7]
[393161442,1762289482553,-253.828329,0.00023288,7]
[393161443,1762289482563,-152.173872,0.00023288,7]
[393161444,1762289482572,-151.0,0.00023288,7]
[393161445,1762289482581,-151.0,0.00023288,7]
[393161446,1762289482590,-151.0,0.00023288,7]
[393161447,1762289482600,-151.0,0.00023288,7]
[393161448,1762289482609,-151.0,0.00023288,7]
[393161449,1762289482619,-151.0,0.00023288,7]
[393161450,1762289482629,-151.0,0.00023288,7]
[393161451,1762289482638,-151.0,0.00023288,7]
[393161452,1762289482647,-174.913154,0.00023288,7]
[393161453,1762289482657,-151.0,0.00023288,7]
[393161454,1762289482666,-151.0,0.00023288,7]
[393161455,1762289482679,-151.0,0.00023288,7]
[393161456,1762289482688,-151.0,0.00023288,7]
[393161457,1762289482698,-151.0,0.00023288,7]
[393161458,1762289482708,-151.0,0.00023288,7]
[393161459,1762289482717,-151.0,0.00023288,7]
[393161460,1762289482726,-151.0,0.00023288,7]
[393161461,1762289482735,-151.0,0.00023288,7]
[393161462,1762289482746,-151.0,0.00023288,7]
[393161463,1762289482755,-151.0,0.00023288,7]
[393161464,1762289482767,-151.0,0.00023288,7]
[393161465,1762289482778,-151.0,0.00023288,7]
[393161466,1762289482788,-151.0,0.00023288,7]
[393161467,1762289482906,-151.0,0.00023288,7]
[393161468,1762289482916,-157.171979,0.00023288,7]
[393161469,1762289482928,-151.0,0.00023288,7]
[393161470,1762289482938,-151.0,0.00023288,7]
[393161471,1762289482948,-151.0,0.00023288,7]
[393161472,1762289482958,-151.0,0.00023288,7]
[393161473,1762289482967,-151.0,0.00023288,7]
[393161474,1762289482977,-243.273301,0.00023288,7]
[393161475,1762289482987,-160.942896,0.00023288,7]
[393161476,1762289482997,-151.0,0.00023288,7]
[393161477,1762289483006,-151.0,0.00023288,7]
[393161478,1762289483016,-151.0,0.00023288,7]
[393161479,1762289483025,-151.0,0.00023288,7]
[393161480,1762289483035,-151.0,0.00023288,7]
[393161481,1762289483045,-151.0,0.00023288,7]
[393161482,1762289483055,-151.0,0.00023288,7]
[393161483,1762289483065,-151.0,0.00023288,7]
[393161484,1762289483075,-151.0,0.00023288,7]
[393161485,1762289483085,-151.0,0.00023288,7]
[393161486,1762289483094,-151.0,0.00023288,7]
[393161487,1762289483104,-242.666731,0.00023288,7]
[393161488,1762289483114,-157.413438,0.00023288,7]
[393161489,1762289483123,-151.0,0.00023288,7]
[393161490,1762289483133,-151.0,0.00023288,7]
[393161491,1762289483142,-151.0,0.00023288,7]
[393161492,1762289483152,-151.0,0.00023288,7]
[393161493,1762289483161,-151.0,0.00023288,7]
[393161494,1762289483171,-151.0,0.00023288,7]
[393161495,1762289483180,-151.0,0.00023288,7]
[393161496,1762289483191,-151.0,0.00023288,7]
[393161497,1762289483201,-624.097741,0.00023288,7]
[393161498,1762289483211,-624.097741,0.00023288,7]
[393161499,1762289483221,-624.097741,0.00023288,7]
[393161500,1762289483231,-624.097741,0.00023288,7]
[393161501,1762289483241,-624.097741,0.00023288,7]
[393161502,1762289483251,-624.097741,0.00023288,7]
[393161503,1762289483261,-624.097741,0.00023288,7]
[393161504,1762289483271,-624.097741,0.00023288,7]
[393161505,1762289483280,-624.097741,0.00023288,7]
[393161506,1762289483289,-624.097741,0.00023288,7]
[393161507,1762289483299,-624.097741,0.00023288,7]
[393161508,1762289483308,-624.097741,0.00023288,7]
[393161509,1762289483318,-624.097741,0.00023288,7]
[393161510,1762289483328,-624.097741,0.00023288,7]
[393161511,1762289483338,-624.097741,0.00023288,7]
[393161512,1762289483348,-624.097741,0.00023288,7]
[393161513,1762289483358,-624.097741,0.00023288,7]
[393161514,1762289483368,-624.097741,0.00023288,7]
[393161515,1762289483377,-624.097741,0.00023288,7]
[393161516,1762289483387,-151.0,0.00023288,7]
[393161517,1762289483396,-624.097746,0.00023288,7]
[393161518,1762289483406,-151.0,0.00023288,7]
[393161519,1762289483415,-151.0,0.00023288,7]
[393161520,1762289483427,-151.0,0.00023288,7]
[393161521,1762289483437,-151.0,0.00023288,7]
[393161522,1762289483447,-151.0,0.00023288,7]
[393161523,1762289483457,-151.867898,0.00023288,7]
[393161524,1762289483467,-151.0,0.00023288,7]
[393161525,1762289483477,-151.0,0.00023288,7]
[393161526,1762289483487,-253.45648594,0.00023288,7]
[393161527,1762289483496,-151.0,0.00023288,7]
[393161528,1762289483506,-151.0,0.00023288,7]
[393161529,1762289483516,-151.0,0.00023288,7]
[393161530,1762289483525,-151.0,0.00023288,7]
[393161531,1762289483535,-173.964988,0.00023288,7]
[393161532,1762289483545,-151.0,0.00023288,7]
[393161533,1762289483555,-151.0,0.00023288,7]
[393161534,1762289483565,-151.0,0.00023288,7]
[393161535,1762289483576,-151.0,0.00023288,7]
[393161536,1762289483585,-155.12866,0.00023288,7]
[393161537,1762289483595,-155.12866,0.00023288,7]
[393161538,1762289483605,-155.12866,0.00023288,7]
[393161539,1762289483615,-155.12866,0.00023288,7]
[393161540,1762289483624,-155.12866,0.00023288,7]
[393161541,1762289483634,-155.12866,0.00023288,7]
[393161542,1762289483644,-155.12866,0.00023288,7]
[393161543,1762289483655,-155.12866,0.00023288,7]
[393161544,1762289483666,-155.12866,0.00023288,7]
[393161545,1762289483681,-155.12866,0.00023288,7]
[393161546,1762289483692,-155.12866,0.00023288,7]
[393161547,1762289483702,-155.12866,0.00023288,7]
[393161548,1762289483713,-155.12866,0.00023288,7]
[393161549,1762289483728,-155.12866,0.00023288,7]
[393161550,1762289483750,-155.12866,0.00023288,7]
[393161551,1762289483772,-155.12866,0.00023288,7]
[393161552,1762289483792,-155.12866,0.00023288,7]
[393161553,1762289483814,-155.12866,0.00023288,7]
[393161554,1762289483834,-155.12866,0.00023288,7]
[393161555,1762289483864,-155.128666,0.00023288,7]
[393161556,1762289483884,-151.0,0.00023288,7]
[393161557,1762289483906,-151.0,0.00023288,7]
[393161558,1762289483930,-151.0,0.00023288,7]
[393161559,1762289483947,-165.568822,0.00023288,7]
[393161560,1762289483968,-151.0,0.00023288,7]
[393161561,1762289483986,-151.0,0.00023288,7]
[393161562,1762289484004,-151.0,0.00023288,7]
[393161563,1762289484020,-151.0,0.00023288,7]
[393161564,1762289484037,-151.0,0.00023288,7]
[393161565,1762289484053,-151.0,0.00023288,7]
[393161566,1762289484075,-151.0,0.00023288,7]
[393161567,1762289484091,-151.0,0.00023288,7]
[393161568,1762289484106,-151.0,0.00023288,7]
[393161569,1762289484120,-151.0,0.00023288,7]
[393161570,1762289484136,-151.0,0.00023288,7]
[393161571,1762289484150,-151.0,0.00023288,7]
[393161572,1762289484166,-151.0,0.00023288,7]
[393161573,1762289484183,-151.0,0.00023288,7]
[393161574,1762289484198,-151.0,0.00023288,7]
[393161575,1762289484214,-151.0,0.00023288,7]
[393161576,1762289484229,-151.0,0.00023288,7]
[393161577,1762289484245,-151.0,0.00023288,7]
[393161578,1762289484260,-151.0,0.00023288,7]
[393161579,1762289484275,-162.568324,0.00023288,7]
[393161580,1762289484291,-151.0,0.00023288,7]
[393161581,1762289484306,-151.0,0.00023288,7]
[393161582,1762289484322,-151.0,0.00023288,7]
[393161583,1762289484337,-151.0,0.00023288,7]
[393161584,1762289484351,-151.0,0.00023288,7]
[393161585,1762289484367,-151.0,0.00023288,7]